bitfinex/quotes_ETHUSD_20250705
["timestamp","ask_amount","ask_price","bid_price","bid_amount"]
[1751709783731,3.96008245,2525.2,2524.9,7.975]
[1751709784434,4.65600641,2525.3,2524.9,7.975]
[1751709787777,4.655976,2525.3,2524.8,1.09018467]
[1751709788073,3.96024416,2525.1,2524.9,7.975]
[1751709791942,3.9604022,2525.0,2524.8,0.1976]
[1751709792268,4.15792711,2525.1,2524.8,7.975]
[1751709792666,3.96041563,2525.0,2524.8,7.975]
[1751709793571,4.1579048,2525.1,2524.8,7.975]
[1751709794480,0.1976,2525.1,2524.8,7.975]
[1751709794661,4.1578454,2525.1,2524.8,7.975]
[1751709794971,4.15792972,2525.1,2524.8,7.974]
[1751709796677,3.96041848,2525.0,2524.8,7.974]
[1751709797185,3.96055849,2524.9,2524.7,0.0429584]
[1751709797475,3.96052396,2525.0,2524.8,7.974]
[1751709798442,3.96052396,2525.0,2524.7,8.0169584]
[1751709798443,3.96064079,2524.9,2524.7,8.0169584]
[1751709798644,0.1976,2524.8,2524.7,8.0169584]
[1751709802680,0.1976,2524.8,2524.7,0.0429584]
[1751709802872,0.1976,2524.8,2524.7,8.0169584]
[1751709805157,4.15830975,2524.8,2524.7,0.0429584]
[1751709805354,5.87519159,2524.8,2524.7,0.0429584]
[1751709805594,6.22631706,2524.8,2524.7,0.0429584]
[1751709807296,16.22631706,2524.8,2524.7,0.0429584]
[1751709807495,18.16031706,2524.8,2524.7,0.0429584]
[1751709815375,11.76720731,2524.8,2524.7,0.0429584]
[1751709815581,10.54872547,2524.8,2524.7,0.0429584]
[1751709815894,0.54872547,2524.8,2524.7,0.0429584]
[1751709818914,4.50943522,2524.8,2524.7,0.0429584]
[1751709819212,0.54872547,2524.8,2524.7,0.0429584]
[1751709823337,0.35112547,2524.8,2524.7,0.8055584]
[1751709823689,0.35112547,2524.8,2524.7,4.76642503]
[1751709824528,0.35112547,2524.8,2524.7,0.8055584]
[1751709827127,0.35112547,2524.8,2524.7,4.76642503]
[1751709829271,0.35112547,2524.8,2524.7,0.8055584]
[1751709829473,0.35112547,2524.8,2524.7,4.76642503]
[1751709829679,0.35112547,2524.8,2524.7,0.8055584]
[1751709830775,0.35112547,2524.8,2524.7,4.76642503]
[1751709832266,0.35112547,2524.8,2524.7,0.8055584]
[1751709834674,0.35112547,2524.8,2524.7,4.76642503]
[1751709835555,0.35112547,2524.8,2524.7,0.8055584]
[1751709836377,0.35112547,2524.8,2524.7,4.76642503]
[1751709836776,0.35112547,2524.8,2524.7,0.8055584]
[1751709838676,0.35112547,2524.8,2524.7,4.76642503]
[1751709838879,0.35112547,2524.8,2524.7,0.8055584]
[1751709842282,0.35112547,2524.8,2524.7,4.76642503]
[1751709842984,0.35112547,2524.8,2524.7,0.8055584]
[1751709844255,0.37143627,2524.8,2524.7,0.8055584]
[1751709845864,0.37143627,2524.8,2524.7,4.76642503]
[1751709846185,0.37143627,2524.8,2524.7,6.69362951]
[1751709846953,0.37143627,2524.8,2524.7,6.65402085]
[1751709849098,4.4578574,2525.6,2524.7,6.65402085]
[1751709849099,0.4984,2525.9,2525.4,3.95969898]
[1751709849260,5.8939342,2526.0,2525.6,3.95932013]
[1751709849261,0.37103252,2525.8,2525.6,3.95932013]
[1751709849460,0.37103252,2525.7,2525.6,4.75332574]
[1751709849660,0.37103252,2525.7,2525.6,13.56103786]
[1751709850283,13.95821692,2526.4,2525.9,3.95890175]
[1751709850483,13.95821692,2526.4,2526.0,7.975]
[1751709850484,0.37059597,2526.3,2526.0,7.975]
[1751709850688,0.37059597,2526.2,2526.0,7.975]
[1751709850889,0.37059597,2526.1,2526.0,7.975]
[1751709856721,4.32926743,2526.1,2526.0,7.975]
[1751709857008,4.82672461,2526.1,2526.0,7.972]
[1751709857874,3.49932804,2526.1,2525.4,0.8145]
[1751709858208,7.52810863,2525.9,2525.5,11.93160948]
[1751709858411,7.52810863,2525.9,2525.6,7.974]
[1751709858577,7.52810863,2525.9,2525.7,7.974]
[1751709858779,11.48718953,2525.9,2525.8,7.974]
[1751709858980,13.90633407,2525.9,2525.8,7.974]
[1751709859512,9.94725317,2525.9,2525.8,7.974]
[1751709859976,2.41914454,2525.9,2525.8,7.974]
[1751709860174,0.56156171,2525.9,2525.8,7.974]
[1751709860380,0.1976,2525.9,2525.8,7.974]
[1751709861310,0.36396171,2526.0,2525.8,7.974]
[1751709861607,0.36396171,2525.9,2525.8,11.93314165]
[1751709861776,0.56156171,2526.1,2525.8,3.95914165]
[1751709861981,0.36396171,2526.0,2525.9,7.973]
[1751709862182,0.5619741,2526.1,2525.9,7.973]
[1751709862378,0.3643741,2526.0,2525.9,7.973]
[1751709862779,0.5619741,2526.1,2525.8,3.95913604]
[1751709862977,0.3643741,2526.0,2525.9,7.974]
[1751709863375,0.1976,2526.1,2525.9,7.974]
[1751709863376,0.5619741,2526.1,2525.9,7.974]
[1751709863881,0.5619741,2526.1,2525.9,11.9329553]
[1751709864106,0.5619741,2526.1,2525.9,7.974]
[1751709865519,4.52066233,2526.1,2525.9,7.974]
[1751709865688,0.3643741,2526.0,2525.9,7.974]
[1751709866718,4.32322918,2526.0,2525.9,7.973]
[1751709867183,6.92398061,2526.0,2525.6,1.0234]
[1751709867379,4.82179029,2525.9,2525.6,0.1976]
[1751709867585,0.3643741,2525.8,2525.7,7.973]
[1751709867907,0.3643741,2525.8,2525.7,7.974]
[1751709868108,0.3643741,2525.8,2525.6,0.1976]
[1751709868502,0.3643741,2525.8,2525.7,7.974]
[1751709868814,0.3643741,2525.8,2525.6,0.1976]
[1751709868815,4.32354883,2525.8,2525.6,0.1976]
[1751709869123,4.32375267,2525.7,2525.3,4.15751904]
[1751709869320,3.95937857,2525.7,2525.4,7.974]
[1751709869915,3.95937857,2525.7,2525.3,0.1976]
[1751709870121,3.95937857,2525.7,2525.5,7.974]
[1751709870318,4.15682423,2525.8,2525.5,7.974]
[1751709870623,0.36363026,2525.7,2525.5,7.974]
[1751709871023,0.36363026,2525.7,2525.3,4.15751521]
[1751709871226,4.32294661,2525.7,2525.3,0.1976]
[1751709871518,4.15682125,2525.8,2525.4,7.974]
[1751709871702,0.36372949,2525.7,2525.4,7.974]
[1751709871902,0.36372949,2525.7,2525.4,9.26933063]
[1751709872218,4.32306225,2525.7,2525.4,9.26933063]
[1751709872418,0.36372949,2525.6,2525.4,7.974]
[1751709873327,4.15680053,2525.8,2525.4,7.974]
[1751709873521,0.36599799,2525.7,2525.4,7.974]
[1751709874018,4.32533755,2525.7,2525.3,0.1976]
[1751709874223,0.36599799,2525.6,2525.5,7.974]
[1751709874438,0.36599799,2525.6,2525.5,7.973]
[1751709875094,3.95972292,2525.5,2525.0,4.72757725]
[1751709875396,0.36599799,2525.4,2525.1,8.1706]
[1751709875591,0.36599799,2525.3,2525.1,8.1706]
[1751709875793,4.65572292,2525.5,2525.1,8.1706]
[1751709875794,0.36599799,2525.2,2525.1,0.1976]
[1751709876029,0.36599799,2525.2,2524.8,0.7672]
[1751709876232,0.36659673,2525.1,2524.9,4.15814842]
[1751709876432,0.3692234,2525.0,2524.7,0.0429584]
[1751709876730,0.3692234,2524.9,2524.7,4.04340982]
[1751709876931,0.1976,2525.1,2524.8,7.975]
[1751709877127,0.36926816,2525.0,2524.8,7.975]
[1751709877327,0.36926816,2524.9,2524.8,7.975]
[1751709877536,0.36926816,2524.9,2524.8,11.93565405]
[1751709879216,0.36926816,2525.0,2524.8,11.93565405]
[1751709879420,0.36926816,2524.9,2524.8,11.93565405]
[1751709880418,0.1976,2525.1,2524.9,3.96055166]
[1751709880623,0.1976,2525.1,2524.9,4.75175166]
[1751709880932,0.56658626,2525.1,2525.0,7.975]
[1751709882322,0.1976,2525.1,2525.0,7.975]
[1751709882845,0.56658626,2525.1,2525.0,7.975]
[1751709883557,0.56796112,2525.1,2525.0,7.975]
[1751709884460,0.37036112,2525.1,2525.0,11.93539603]
[1751709884649,0.1976,2525.3,2525.0,11.93539603]
[1751709884822,0.37036112,2525.2,2525.0,11.93539603]
[1751709885471,0.37036112,2525.1,2525.0,11.93539603]
[1751709885623,0.37036112,2525.2,2525.0,11.93539603]
[1751709885923,0.37036112,2525.1,2525.0,11.93539603]
[1751709886453,0.37031903,2525.1,2525.0,7.975]
[1751709886752,0.37031903,2525.2,2525.0,7.975]
[1751709886918,0.37031903,2525.1,2525.0,11.93539603]
[1751709887120,0.37031903,2525.2,2525.0,11.93539603]
[1751709887343,0.37031903,2525.1,2525.0,11.93539603]
[1751709887623,0.37031903,2525.2,2525.0,11.93539603]
[1751709887846,0.37031903,2525.1,2525.0,11.93539603]
[1751709888042,0.37031903,2525.2,2525.0,11.93539603]
[1751709892457,0.37031903,2525.1,2525.0,11.93539603]
[1751709892634,0.37031903,2525.2,2525.0,11.93539603]
[1751709892835,0.37031903,2525.1,2525.0,11.93539603]
[1751709893238,0.37031903,2525.2,2525.0,11.93539603]
[1751709893437,0.37031903,2525.1,2525.0,11.93539603]
[1751709894555,0.37031903,2525.2,2525.0,11.93539603]
[1751709894761,0.37031903,2525.1,2525.0,11.93539603]
[1751709894954,0.37031903,2525.2,2525.0,11.93539603]
[1751709895150,0.37031903,2525.1,2525.0,11.93539603]
[1751709895454,0.37031903,2525.2,2525.0,7.975]
[1751709895631,0.37031903,2525.1,2525.0,7.975]
[1751709895828,0.37031903,2525.1,2524.8,4.15822455]
[1751709896046,0.37031903,2525.0,2524.9,11.93455289]
[1751709896245,0.37031903,2525.2,2524.9,11.93455289]
[1751709896444,0.37031903,2525.1,2524.9,11.93455289]
[1751709896762,0.37031903,2525.0,2524.9,11.93455289]
[1751709897524,0.37031903,2525.2,2524.9,11.93455289]
[1751709897730,0.37031903,2525.1,2524.9,11.93455289]
[1751709898040,0.37031903,2525.0,2524.9,11.93455289]
[1751709898240,0.37031903,2525.2,2524.9,11.93455289]
[1751709898541,0.37031903,2525.1,2524.9,11.93455289]
[1751709898842,0.37031903,2525.0,2524.9,11.93455289]
[1751709899024,0.37031903,2525.2,2524.9,11.93455289]
[1751709899228,0.37031903,2525.1,2524.9,11.93455289]
[1751709899429,0.37031903,2525.0,2524.9,11.93455289]
[1751709899665,0.37031903,2525.0,2524.9,14.39563425]
[1751709901334,0.37031903,2525.0,2524.9,11.93455289]
[1751709901747,0.37031903,2525.0,2524.8,0.1976]
[1751709901950,0.37031903,2524.9,2524.8,4.15822807]
[1751709902263,0.37031903,2524.9,2524.8,12.13222807]
[1751709903385,0.37120935,2524.9,2524.8,12.13222807]
[1751709903572,0.37120935,2524.9,2524.8,13.82238275]
[1751709904252,0.37120935,2524.9,2524.8,5.84846443]
[1751709904459,0.37120935,2524.9,2524.8,8.1716]
[1751709904650,0.37120935,2524.9,2524.8,12.13230975]
[1751709904854,0.37120935,2524.9,2524.8,8.1716]
[1751709905582,0.37120935,2524.9,2524.8,0.1976]
[1751709905787,0.37120935,2524.9,2524.8,8.1716]
[1751709906280,0.37120935,2524.9,2524.8,0.1976]
[1751709906986,0.37120935,2524.9,2524.8,8.1716]
[1751709908187,0.37120935,2524.9,2524.8,0.1976]
[1751709908366,0.37120935,2524.9,2524.8,8.1716]
[1751709910585,0.37120935,2524.9,2524.8,0.1976]
[1751709910888,0.37120935,2524.9,2524.8,8.1716]
[1751709911089,0.37120935,2524.9,2524.8,12.13230975]
[1751709911290,0.37120935,2524.9,2524.8,12.88790975]
[1751709931725,0.37120935,2524.9,2524.8,14.29042358]
[1751709933031,0.1976,2525.3,2524.9,3.96041224]
[1751709933231,0.37168353,2525.2,2525.0,11.93335793]
[1751709933396,0.37168353,2525.1,2525.0,11.93335793]
[1751709933889,0.37168353,2525.1,2525.0,7.973]
[1751709935924,0.37168567,2525.1,2525.0,11.93339603]
[1751709939234,0.37168567,2525.1,2525.0,7.973]
[1751709940432,0.37168567,2525.1,2525.0,11.93339603]
[1751709940933,0.37168567,2525.1,2525.0,7.973]
[1751709941130,0.37168567,2525.1,2524.9,3.96048173]
[1751709941313,0.1976,2525.3,2525.0,7.973]
[1751709941514,0.37172298,2525.2,2525.0,7.973]
[1751709941717,0.37172298,2525.1,2525.0,7.973]
[1751709943838,0.37172298,2525.1,2525.0,11.93339603]
[1751709944543,0.37172265,2525.1,2525.0,11.93339603]
[1751709947541,0.3717197,2525.1,2525.0,7.973]
[1751709951274,0.3717197,2525.1,2525.0,11.93339603]
[1751709958471,0.3717197,2525.1,2525.0,11.93439603]
[1751709960170,0.3717197,2525.1,2525.0,20.10893915]
[1751709961574,0.1996,2525.7,2525.4,3.95961285]
[1751709961737,0.37135805,2525.6,2525.5,11.93159013]
[1751709963240,0.37135805,2525.6,2525.5,7.972]
[1751709964742,0.37135805,2525.6,2525.2,0.1976]
[1751709965073,6.35208917,2525.5,2525.3,7.972]
[1751709965375,0.37135805,2525.4,2525.3,7.972]
[1751709965883,0.37135805,2525.4,2525.2,3.96000133]
[1751709965884,10.37135805,2525.4,2525.0,0.001]
[1751709966180,0.1976,2525.2,2525.1,7.972]
[1751709966479,0.56895805,2525.2,2525.1,7.972]
[1751709966853,0.56895805,2525.2,2525.1,11.93223919]
[1751709967041,0.1976,2525.2,2525.1,11.93223919]
[1751709967239,0.3710999,2525.2,2525.1,12.74553919]
[1751709967444,0.3710999,2525.2,2525.1,15.16206309]
[1751709967639,0.002,2525.7,2525.6,0.8133]
[1751709967873,0.37304515,2525.7,2525.6,12.74475517]
[1751709973453,0.002,2525.7,2525.6,12.74475517]
[1751709973762,0.37304515,2525.7,2525.6,12.74475517]
[1751709973958,0.002,2525.7,2525.6,14.43495188]
[1751709974290,0.37304515,2525.7,2525.6,14.43495188]
[1751709974787,0.002,2525.7,2525.6,14.43495188]
[1751709974988,0.37304515,2525.7,2525.6,14.43495188]
[1751709977056,0.002,2525.7,2525.6,14.43495188]
[1751709981491,0.002,2525.7,2525.6,12.74475517]
[1751709981798,0.36775506,2525.7,2525.6,12.74475517]
[1751709981987,0.36775506,2525.7,2525.6,7.97]
[1751709982387,0.36775506,2525.7,2525.5,4.15816169]
[1751709982589,0.002,2525.7,2525.6,7.97]
[1751709983197,0.36658841,2525.7,2525.6,7.97]
[1751709983394,0.002,2525.7,2525.6,7.97]
[1751709983574,0.36658841,2525.7,2525.6,7.97]
[1751709983780,0.002,2525.7,2525.6,7.97]
[1751709984105,0.36658841,2525.7,2525.6,7.97]
[1751709985003,0.36658841,2525.7,2525.5,0.001]
[1751709985206,0.36458841,2525.6,2525.5,0.001]
[1751709985374,0.79717742,2525.6,2525.5,7.971]
[1751709986606,5.25503259,2525.6,2525.5,7.971]
[1751709987308,1.29557742,2525.6,2525.5,7.971]
[1751709988009,5.25503259,2525.6,2525.5,7.971]
[1751709989219,5.25503259,2525.6,2525.5,0.001]
[1751709989375,5.25503259,2525.6,2525.5,7.971]
[1751709990810,5.25503259,2525.6,2525.5,0.001]
[1751709991123,5.25812239,2525.6,2525.5,7.971]
[1751709993722,12.79111568,2525.6,2525.5,0.001]
[1751709994029,12.79111568,2525.6,2525.5,7.971]
[1751709994622,12.79111568,2525.6,2525.5,0.001]
[1751709994801,12.79111568,2525.6,2525.5,7.971]
[1751709995229,12.79111568,2525.6,2525.5,0.001]
[1751709995428,12.79111568,2525.6,2525.5,7.971]
[1751709998128,12.79111568,2525.6,2525.5,0.001]
[1751710004936,5.25812239,2525.6,2525.5,0.001]
[1751710008946,4.75972239,2525.6,2525.5,0.001]
[1751710017662,4.39204418,2525.6,2525.5,0.001]
[1751710017865,4.7633361,2525.6,2525.5,0.001]
[1751710018370,4.76337055,2525.6,2525.5,0.001]
[1751710020749,4.76344832,2525.6,2525.5,0.001]
[1751710024373,4.33085931,2525.6,2525.5,0.001]
[1751710024775,0.37140414,2525.6,2525.5,0.001]
[1751710025648,0.37140414,2525.6,2525.5,4.78540806]
[1751710025837,0.002,2525.7,2525.6,4.74465517]
[1751710026041,0.37356026,2525.7,2525.6,4.74465517]
[1751710026238,0.37356026,2525.7,2525.6,6.43194188]
[1751710026675,0.37356026,2525.7,2525.6,6.62954188]
[1751710030274,0.002,2525.7,2525.6,6.62954188]
[1751710030674,0.002,2525.7,2525.6,6.66913643]
[1751710033579,0.002,2525.7,2525.6,6.62954188]
[1751710034777,0.002,2525.7,2525.6,14.63713643]
[1751710035074,0.002,2525.7,2525.6,8.9508]
[1751710036590,0.002,2525.7,2525.5,0.001]
[1751710036798,0.002,2525.7,2525.6,7.968]
[1751710036959,7.53499329,2525.7,2525.6,7.968]
[1751710037156,7.90537265,2525.7,2525.6,7.968]
[1751710037648,7.90214062,2525.7,2525.6,7.968]
[1751710038792,0.36914733,2525.7,2525.5,0.001]
[1751710038955,4.15705517,2525.6,2525.5,0.001]
[1751710039155,4.15705517,2525.6,2525.5,7.969]
[1751710039459,4.52422577,2525.6,2525.5,7.969]
[1751710040252,6.67431905,2525.6,2525.5,0.001]
[1751710040450,6.67431905,2525.6,2525.5,7.969]
[1751710040686,6.67431905,2525.6,2525.5,0.001]
[1751710042860,6.67761129,2525.6,2525.5,0.001]
[1751710043692,6.67760427,2525.6,2525.5,0.001]
[1751710048305,16.67760427,2525.6,2525.5,0.001]
[1751710050798,17.22760427,2525.6,2525.5,0.001]
[1751710055143,17.22760427,2525.6,2525.5,1e-08]
[1751710055408,17.22760427,2525.6,2525.0,0.001]
[1751710055409,14.45863919,2525.1,2525.0,0.001]
[1751710055621,22.3617619,2525.1,2525.0,0.001]
[1751710059989,22.9117619,2525.1,2525.0,0.001]
[1751710066510,24.8447619,2525.1,2525.0,0.001]
[1751710068928,22.9117619,2525.1,2525.0,0.001]
[1751710069111,27.11043749,2525.1,2525.0,0.001]
[1751710073526,27.11080948,2525.1,2525.0,0.001]
[1751710084570,27.11168696,2525.1,2525.0,0.001]
[1751710084867,25.17868696,2525.1,2525.0,0.001]
[1751710085061,26.61228696,2525.1,2525.0,0.001]
[1751710085866,26.06228696,2525.1,2525.0,0.001]
[1751710090288,26.06269549,2525.1,2525.0,0.001]
[1751710091175,26.56109549,2525.1,2525.0,0.001]
[1751710092282,27.11109549,2525.1,2525.0,0.001]
[1751710096251,26.73930807,2525.1,2525.0,0.001]
[1751710096590,27.11105757,2525.1,2525.0,0.001]
[1751710103065,27.11083525,2525.1,2525.0,0.001]
[1751710104166,26.73930807,2525.1,2525.0,0.001]
[1751710105668,13.96055289,2524.9,2524.8,0.001]
[1751710105967,14.51055289,2524.9,2524.8,0.001]
[1751710106168,15.20670975,2524.8,2524.7,0.0429584]
[1751710106364,22.73970304,2524.8,2524.7,0.0429584]
[1751710106676,24.85859484,2524.8,2524.7,0.0429584]
[1751710107078,24.36019484,2524.8,2524.7,0.0429584]
[1751710107264,26.29219484,2524.8,2524.7,0.0429584]
[1751710107784,29.73461355,2524.8,2524.7,0.0429584]
[1751710108178,30.23301355,2524.8,2524.7,0.0429584]
[1751710109009,30.60454452,2524.8,2524.7,0.0429584]
[1751710109805,27.17484592,2524.8,2524.7,0.0429584]
[1751710110306,27.38154105,2524.8,2524.7,1e-08]
[1751710110493,27.38144603,2524.8,2524.7,1e-08]
[1751710110694,35.35144603,2524.8,2524.7,1e-08]
[1751710111690,25.44944603,2524.8,2524.7,1e-08]
[1751710111892,35.35244603,2524.8,2524.7,1e-08]
[1751710113911,65.35244603,2524.8,2524.7,1e-08]
[1751710115994,3.96149427,2524.3,2524.2,0.0429584]
[1751710116194,11.87864362,2524.3,2524.2,0.0429584]
[1751710116817,21.87864362,2524.3,2524.2,0.0429584]
[1751710120018,22.07514281,2524.3,2524.2,0.0429584]
[1751710120907,22.62514281,2524.3,2524.2,0.0429584]
[1751710121087,24.27683609,2524.3,2524.2,0.0429584]
[1751710121822,26.0123369,2524.3,2524.2,0.0429584]
[1751710123094,26.20976784,2524.3,2524.2,0.0429584]
[1751710129627,26.21076784,2524.3,2524.2,0.0429584]
[1751710130021,24.27776784,2524.3,2524.2,0.0429584]
[1751710130222,26.21076784,2524.3,2524.2,0.0429584]
[1751710134126,56.70916784,2524.3,2524.2,0.0429584]
[1751710134341,56.91591838,2524.3,2524.2,0.0429584]
[1751710135270,14.51165121,2524.2,2524.1,0.001]
[1751710135533,14.51165121,2524.2,2523.7,0.0429584]
[1751710135534,11.5079925,2523.8,2523.7,0.0429584]
[1751710135737,11.87942845,2523.8,2523.7,0.0429584]
[1751710136031,21.87942845,2523.8,2523.7,0.0429584]
[1751710136214,24.69510404,2523.8,2523.7,0.0429584]
[1751710136619,33.16550404,2523.8,2523.7,1e-08]
[1751710138430,25.49096625,2523.8,2523.7,1e-08]
[1751710138638,35.39496625,2523.8,2523.7,1e-08]
[1751710139317,34.89656625,2523.8,2523.7,1e-08]
[1751710141540,26.92456625,2523.8,2523.7,1e-08]
[1751710143949,34.89856625,2523.8,2523.7,1e-08]
[1751710147127,34.89856625,2523.8,2523.4,0.02]
[1751710147128,13.96275014,2523.5,2523.4,0.02]
[1751710147330,21.87989949,2523.5,2523.4,0.02]
[1751710149657,14.33418609,2523.5,2523.4,0.02]
[1751710149860,16.26718609,2523.5,2523.4,0.02]
[1751710151561,15.89575014,2523.5,2523.4,0.02]
[1751710151729,14.3335154,2523.5,2523.4,0.02]
[1751710152061,16.2665154,2523.5,2523.4,0.7795]
[1751710152475,0.37076526,2523.5,2523.4,0.7795]
[1751710152762,0.56836526,2523.5,2523.4,0.7795]
[1751710156435,0.5684824,2523.5,2523.4,0.7795]
[1751710157464,0.5685255,2523.5,2523.4,0.7795]
[1751710157663,0.3709255,2523.5,2523.4,0.7795]
[1751710158263,0.3709255,2523.5,2523.4,1.65636465]
[1751710162694,0.37118582,2523.5,2523.4,1.65636465]
[1751710163061,0.37118582,2523.5,2523.4,5.61927183]
[1751710163593,0.37118582,2523.5,2523.4,1.65636465]
[1751710166902,0.37118582,2523.5,2523.4,5.61927183]
[1751710167071,0.37118582,2523.5,2523.4,5.6589009]
[1751710168071,0.37118582,2523.5,2523.4,5.61927183]
[1751710168387,0.37118582,2523.5,2523.4,4.85977183]
[1751710168587,0.37118582,2523.5,2523.4,0.02]
[1751710168969,0.37125958,2523.5,2523.4,0.02]
[1751710170075,0.37125958,2523.5,2523.4,0.7706]
[1751710170710,0.37125958,2523.5,2523.4,4.77313625]
[1751710170911,0.37125958,2523.5,2523.4,6.45105]
[1751710171116,0.002,2523.8,2523.7,4.7622361]
[1751710171274,0.37316085,2523.8,2523.7,4.7622361]
[1751710172804,0.37316085,2523.8,2523.7,12.7452361]
[1751710173890,0.002,2523.8,2523.7,12.7452361]
[1751710174091,0.002,2523.8,2523.7,14.41601902]
[1751710174614,0.002,2523.8,2523.7,6.43301902]
[1751710174789,0.37316085,2523.8,2523.7,14.41501902]
[1751710175297,0.002,2523.8,2523.7,14.41501902]
[1751710175684,0.002,2523.8,2523.7,14.41401902]
[1751710176114,0.37316085,2523.8,2523.7,14.41401902]
[1751710176319,0.002,2523.8,2523.7,14.41401902]
[1751710178502,0.002,2523.8,2523.7,14.61161902]
[1751710200143,0.002,2523.8,2523.7,24.61161902]
[1751710200374,0.002,2523.8,2523.7,25.16161902]
[1751710201876,1e-08,2523.8,2523.7,25.16161902]
[1751710203490,0.002,2524.7,2524.4,4.72823734]
[1751710203491,0.37117827,2524.5,2524.4,4.72823734]
[1751710203667,0.37117827,2524.5,2524.4,13.57520796]
[1751710203984,0.37117827,2524.5,2524.4,13.77280796]
[1751710204382,0.002,2524.7,2524.5,3.96118043]
[1751710204581,0.002,2524.7,2524.6,11.93902352]
[1751710204806,0.37296521,2524.7,2524.6,12.13662352]
[1751710205085,0.37296521,2524.7,2524.6,14.30612471]
[1751710206201,0.002,2524.7,2524.6,14.30612471]
[1751710209473,0.002,2524.7,2524.6,14.30312471]
[1751710212284,0.002,2524.7,2524.6,14.30212471]
[1751710213275,0.002,2524.7,2524.4,0.7669]
[1751710213475,0.002,2524.7,2524.5,7.976]
[1751710213476,0.5004,2524.7,2524.5,7.976]
[1751710213688,0.5004,2524.7,2524.6,7.976]
[1751710214002,0.87073383,2524.7,2524.6,7.976]
[1751710216602,0.87073383,2524.7,2524.4,3.9612487]
[1751710216899,0.5004,2524.7,2524.5,7.978]
[1751710218214,0.5004,2524.7,2524.4,3.9612487]
[1751710218404,0.5004,2524.7,2524.5,7.978]
[1751710219216,0.5004,2524.7,2524.5,11.93917015]
[1751710219414,0.5004,2524.7,2524.5,7.978]
[1751710219596,0.37048572,2524.6,2524.5,7.978]
[1751710220819,0.3705283,2524.6,2524.5,7.978]
[1751710221518,0.3705283,2524.6,2524.3,4.15900409]
[1751710221824,0.3705283,2524.6,2524.4,7.976]
[1751710222228,0.3705283,2524.6,2524.3,0.1976]
[1751710222395,0.3705283,2524.6,2524.4,7.977]
[1751710223612,0.3705283,2524.6,2524.3,0.1976]
[1751710223818,0.4984,2524.4,2524.1,4.15931983]
[1751710223998,0.4984,2524.4,2524.2,7.977]
[1751710224323,0.4984,2524.4,2524.2,11.9386446]
[1751710226323,0.37085969,2524.3,2524.2,11.9386446]
[1751710228626,0.37085969,2524.3,2524.1,4.1593667]
[1751710228839,0.37085969,2524.3,2524.2,7.977]
[1751710229125,0.37085969,2524.3,2524.2,11.93865121]
[1751710229332,0.37107303,2524.3,2524.2,11.93865121]
[1751710229702,0.37107303,2524.3,2524.2,7.977]
[1751710230531,0.37107303,2524.3,2524.1,0.1976]
[1751710230716,0.37105268,2524.2,2524.1,0.1976]
[1751710230895,0.37105268,2524.2,2524.1,8.1736]
[1751710231802,0.37105268,2524.2,2524.1,0.1976]
[1751710232034,0.4984,2524.1,2523.9,0.1976]
[1751710232326,0.37105268,2524.0,2523.9,0.1976]
[1751710232712,0.37105268,2524.0,2523.9,4.15972211]
[1751710233043,0.37105268,2524.0,2523.9,12.13672211]
[1751710233819,0.37105268,2524.0,2523.6,3.9634513]
[1751710234018,0.37105268,2523.9,2523.6,0.1986]
[1751710234224,0.37105268,2523.8,2523.6,0.001]
[1751710234521,0.86945268,2523.8,2523.7,7.977]
[1751710235654,0.37105268,2523.8,2523.7,7.977]
[1751710236059,0.37105268,2523.8,2523.7,7.978]
[1751710236263,0.56865268,2523.9,2523.7,7.978]
[1751710236551,0.37105268,2523.8,2523.7,7.978]
[1751710237057,0.56865268,2523.9,2523.7,7.978]
[1751710239151,0.37038418,2523.8,2523.7,7.978]
[1751710239526,0.56798418,2523.9,2523.7,7.978]
[1751710239734,0.37038418,2523.8,2523.7,7.978]
[1751710239932,0.56798418,2523.9,2523.7,7.978]
[1751710240132,0.37038418,2523.8,2523.7,7.978]
[1751710240346,0.56798418,2523.9,2523.7,7.978]
[1751710240551,0.56798418,2523.9,2523.7,11.94039939]
[1751710244965,0.37031527,2523.8,2523.7,11.94039939]
[1751710245162,0.56791527,2523.9,2523.7,11.94039939]
[1751710246161,0.37031527,2523.9,2523.8,3.9622791]
[1751710247547,0.37031527,2524.0,2523.8,3.9622791]
[1751710247750,0.1976,2524.1,2523.9,7.976]
[1751710247949,0.37037877,2524.0,2523.9,7.976]
[1751710256840,0.37098838,2524.0,2523.9,7.976]
[1751710260565,0.37298838,2524.0,2523.9,7.976]
[1751710261394,0.3735668,2524.0,2523.9,7.976]
[1751710265360,4.33553193,2524.0,2523.9,7.976]
[1751710265560,0.8719668,2524.0,2523.9,7.976]
[1751710266586,4.83393193,2524.0,2523.9,7.976]
[1751710266801,6.48784029,2524.0,2523.9,7.976]
[1751710267763,6.48784029,2524.0,2523.6,0.1986]
[1751710267963,4.3337074,2523.9,2523.7,7.972]
[1751710268185,0.3715668,2523.8,2523.7,7.972]
[1751710276105,0.3715668,2523.8,2523.6,0.001]
[1751710276306,3.96213718,2523.9,2523.7,7.973]
[1751710276509,0.37178562,2523.8,2523.7,7.973]
[1751710281507,0.37178562,2523.8,2523.6,0.001]
[1751710281722,3.96229663,2523.8,2523.7,7.973]
[1751710281880,9.82366946,2523.8,2523.7,7.973]
[1751710282082,3.9624361,2523.7,2523.6,7.973]
[1751710282384,3.9624361,2523.7,2523.6,7.974]
[1751710282385,5.0302259,2523.7,2523.6,7.974]
[1751710282590,5.0302259,2523.7,2523.6,0.001]
[1751710285511,6.9632259,2523.7,2523.6,0.001]
[1751710289822,6.5914361,2523.7,2523.6,0.001]
[1751710290014,8.54654263,2523.7,2523.6,0.001]
[1751710290211,8.91781782,2523.7,2523.6,0.001]
[1751710290726,8.54654263,2523.7,2523.6,0.001]
[1751710290946,0.1976,2523.7,2523.6,0.001]
[1751710291089,0.002,2524.0,2523.6,0.04062593]
[1751710291288,0.002,2524.0,2523.7,8.7487]
[1751710291523,0.002,2524.0,2523.8,0.81532279]
[1751710291729,0.002,2524.0,2523.8,8.9463]
[1751710291923,0.002,2524.0,2523.8,12.90856753]